fUST/lending_fUST_20241225
["ID","MTS","AMOUNT","RATE_DAILY","PERIOD"]
[346583623,1735114254699,-502.14130472,0.00011229,2]
[346583624,1735114254709,-501.74159723,0.00011229,2]
[346583625,1735114254718,-151.0,0.00011229,2]
[346583626,1735114254728,-502.84260476,0.00011229,2]
[346583627,1735114254738,-502.93390904,0.00011229,2]
[346583628,1735114254747,-151.0,0.00011229,2]
[346583629,1735114254756,-500.0,0.00011229,2]
[346583630,1735114254765,-500.0,0.00011229,2]
[346583631,1735114254775,-524.61157467,0.00011229,2]
[346583632,1735114254784,-500.0,0.00011229,2]
[346583633,1735114254794,-501.90122122,0.00011229,2]
[346583634,1735114254803,-500.0,0.00011229,2]
[346583635,1735114254812,-500.0,0.00011229,2]
[346583636,1735114254821,-503.09599382,0.00011229,2]
[346583637,1735114254830,-500.0,0.00011229,2]
[346583638,1735114254839,-501.88596783,0.00011229,2]
[346583639,1735114254848,-500.0,0.00011229,2]
[346583640,1735114254857,-502.8656704,0.00011229,2]
[346583641,1735114254867,-151.0,0.00011229,2]
[346583642,1735114254876,-500.0,0.00011229,2]
[346583643,1735114254885,-500.0,0.00011229,2]
[346583644,1735114254895,-500.0,0.00011229,2]
[346583645,1735114254904,-500.0,0.00011229,2]
[346583646,1735114254914,-500.0,0.00011229,2]
[346583647,1735114254923,-151.0,0.00011229,2]
[346583648,1735114254932,-510.96916891,0.00011229,2]
[346583649,1735114254942,-500.0,0.00011229,2]
[346583650,1735114254951,-151.0,0.00011229,2]
[346583651,1735114254960,-513.7883702,0.00011229,2]
[346583652,1735114254969,-502.7228581,0.00011229,2]
[346583653,1735114254978,-500.0,0.00011229,2]
[346583654,1735114254987,-500.0,0.00011229,2]
[346583655,1735114254999,-500.0,0.00011229,2]
[346583656,1735114255008,-500.0,0.00011229,2]
[346583657,1735114255019,-500.0,0.00011229,2]
[346583658,1735114255029,-277.762112,0.00011229,2]
[346583659,1735114255038,-505.5799141,0.00011229,2]
[346583660,1735114255047,-312.60422348,0.00011229,2]
[346583661,1735114255057,-277.762112,0.00011229,2]
[346583662,1735114255066,-500.0,0.00011229,2]
[346583663,1735114255075,-500.0,0.00011229,2]
[346583664,1735114255084,-502.56751063,0.00011229,2]
[346583665,1735114255094,-500.0,0.00011229,2]
[346583666,1735114255103,-500.0,0.00011229,2]
[346583667,1735114255112,-500.0,0.00011229,2]
[346583668,1735114255125,-195.41353016,0.00011229,2]
[346583669,1735114255134,-500.0,0.00011229,2]
[346583670,1735114255143,-500.62507847,0.00011229,2]
[346583671,1735114255153,-500.0,0.00011229,2]
[346583672,1735114255162,-234.46264604,0.00011229,2]
[346583673,1735114255171,-503.00266662,0.00011229,2]
[346583674,1735114255180,-502.19180565,0.00011229,2]
[346583675,1735114255189,-500.0,0.00011229,2]
[346583676,1735114255199,-503.60952583,0.00011229,2]
[346583677,1735114255208,-500.0,0.00011229,2]
[346583678,1735114255218,-157.05954367,0.00011229,2]
[346583679,1735114255227,-502.89907346,0.00011229,2]
[346583680,1735114255236,-503.06677639,0.00011229,2]
[346583681,1735114255246,-500.0,0.00011229,2]
[346583682,1735114255255,-607.37,0.00011229,2]
[346583683,1735114255264,-500.0,0.00011229,2]
[346583684,1735114255273,-502.66409176,0.00011229,2]
[346583685,1735114255282,-447.035386,0.00011229,2]
[346583686,1735114255292,-447.035386,0.00011229,2]
[346583687,1735114255301,-500.0,0.00011229,2]
[346583688,1735114255310,-447.035386,0.00011229,2]
[346583689,1735114255321,-447.035386,0.00011229,2]
[346583690,1735114255330,-151.0,0.00011229,2]
[346583691,1735114255339,-151.0,0.00011229,2]
[346583692,1735114255349,-502.17614677,0.00011229,2]
[346583693,1735114255359,-151.0,0.00011229,2]
[346583694,1735114255368,-151.0,0.00011229,2]
[346583695,1735114255378,-500.0,0.00011229,2]
[346583696,1735114255387,-505.82228467,0.00011229,2]
[346583697,1735114255397,-501.79548777,0.00011229,2]
[346583698,1735114255406,-501.42343876,0.00011229,2]
[346583699,1735114255416,-501.97236093,0.00011229,2]
[346583700,1735114255426,-151.0,0.00011229,2]
[346583701,1735114255435,-510.3,0.00011229,2]
[346583702,1735114255445,-410.761462,0.00011229,2]
[346583703,1735114255454,-502.55660147,0.00011229,2]
[346583704,1735114255464,-500.0,0.00011229,2]
[346583705,1735114255474,-410.761462,0.00011229,2]
[346583706,1735114255483,-500.0,0.00011229,2]
[346583707,1735114255493,-603.8,0.00011229,2]
[346583708,1735114255503,-500.0,0.00011229,2]
[346583709,1735114255513,-1007.94,0.00011229,2]
[346583710,1735114255522,-502.73923988,0.00011229,2]
[346583711,1735114255532,-500.0,0.00011229,2]
[346583712,1735114255541,-500.0,0.00011229,2]
[346583713,1735114255550,-500.0,0.00011229,2]
[346583714,1735114255560,-500.0,0.00011229,2]
[346583715,1735114255571,-502.733197,0.00011229,2]
[346583716,1735114255581,-500.0,0.00011229,2]
[346583717,1735114255591,-503.17791094,0.00011229,2]
[346583718,1735114255600,-501.00060628,0.00011229,2]
[346583719,1735114255609,-532.2,0.00011229,2]
[346583720,1735114255619,-551.22,0.00011229,2]
[346583721,1735114255628,-500.0,0.00011229,2]
[346583722,1735114255638,-502.53716987,0.00011229,2]
[346583723,1735114255648,-503.37442402,0.00011229,2]
[346583724,1735114255657,-782.01,0.00011229,2]
[346583725,1735114255667,-151.0,0.00011229,2]
[346583726,1735114255678,-503.69378914,0.00011229,2]
[346583727,1735114255688,-391.027377,0.00011229,2]
[346583728,1735114255697,-502.51035047,0.00011229,2]
[346583729,1735114255706,-391.027377,0.00011229,2]
[346583730,1735114255716,-502.52723413,0.00011229,2]
[346583731,1735114255725,-500.0,0.00011229,2]
[346583732,1735114255734,-1009.9,0.00011229,2]
[346583733,1735114255743,-620.980716,0.00011229,2]
[346583734,1735114255752,-266.75211091,0.00011229,2]
[346583735,1735114255761,-754.17,0.00011229,2]
[346583736,1735114255770,-540.90178331,0.00011229,2]
[346583737,1735114255779,-502.04092753,0.00011229,2]
[346583738,1735114255788,-601.76,0.00011229,2]
[346583739,1735114255797,-501.41028101,0.00011229,2]
[346583740,1735114255806,-500.84069531,0.00011229,2]
[346583741,1735114255816,-151.0,0.00011229,2]
[346583742,1735114255825,-500.0,0.00011229,2]
[346583743,1735114255835,-500.0,0.00011229,2]
[346583744,1735114255846,-500.0,0.00011229,2]
[346583745,1735114255855,-500.0,0.00011229,2]
[346583746,1735114255864,-500.0,0.00011229,2]
[346583747,1735114255874,-502.4643162,0.00011229,2]
[346583748,1735114255883,-500.0,0.00011229,2]
[346583749,1735114255892,-500.0,0.00011229,2]
[346583750,1735114255903,-500.0,0.00011229,2]
[346583751,1735114255914,-500.0,0.00011229,2]
[346583752,1735114255923,-642.62519808,0.00011229,2]
[346583753,1735114255932,-503.10985476,0.00011229,2]
[346583754,1735114255943,-500.0,0.00011229,2]
[346583755,1735114255953,-503.80891113,0.00011229,2]
[346583756,1735114255963,-502.71180506,0.00011229,2]
[346583757,1735114255973,-155.193608,0.00011229,2]
[346583758,1735114255982,-155.193608,0.00011229,2]
[346583759,1735114255991,-155.193608,0.00011229,2]
[346583760,1735114256000,-155.193608,0.00011229,2]
[346583761,1735114256010,-501.82365361,0.00011229,2]
[346583762,1735114256020,-636.97004,0.00011229,2]
[346583763,1735114256030,-636.97004,0.00011229,2]
[346583764,1735114256039,-500.0,0.00011229,2]
[346583765,1735114256049,-636.97004,0.00011229,2]
[346583766,1735114256058,-636.97004,0.00011229,2]
[346583767,1735114256068,-151.0,0.00011229,2]
[346583768,1735114256078,-151.0,0.00011229,2]
[346583769,1735114256087,-265.335607,0.00011229,2]
[346583770,1735114256096,-517.01,0.00011229,2]
[346583771,1735114256106,-502.33794528,0.00011229,2]
[346583772,1735114256118,-778.87296,0.00011229,2]
[346583773,1735114256128,-778.87296,0.00011229,2]
[346583774,1735114256138,-500.0,0.00011229,2]
[346583775,1735114256147,-778.87296,0.00011229,2]
[346583776,1735114256157,-778.87296,0.00011229,2]
[346583777,1735114256167,-281.24926534,0.00011229,2]
[346583778,1735114256177,-151.0,0.00011229,2]
[346583779,1735114256186,-151.0,0.00011229,2]
[346583780,1735114256198,-234.507118,0.00011229,2]
[346583781,1735114256207,-151.0,0.00011229,2]
[346583782,1735114256217,-151.0,0.00011229,2]
[346583783,1735114256226,-500.0,0.00011229,2]
[346583784,1735114256235,-151.0,0.00011229,2]
[346583785,1735114256247,-151.0,0.00011229,2]
[346583786,1735114256262,-518.31767556,0.00011229,2]
[346583787,1735114256274,-500.0,0.00011229,2]
[346583788,1735114256289,-500.0,0.00011229,2]
[346583789,1735114256299,-8844.65,0.00011229,2]
[346583790,1735114256309,-500.0,0.00011229,2]
[346583791,1735114256318,-181.75132204,0.00011229,2]
[346583792,1735114256327,-500.0,0.00011229,2]
[346583793,1735114256337,-151.0,0.00011229,2]
[346583794,1735114256346,-151.0,0.00011229,2]
[346583795,1735114256356,-552.58,0.00011229,2]
[346583796,1735114256365,-503.00481932,0.00011229,2]
[346583797,1735114256374,-502.3763763,0.00011229,2]
[346583798,1735114256384,-623.52,0.00011229,2]
[346583799,1735114256393,-213.145238,0.00011229,2]
[346583800,1735114256402,-213.145238,0.00011229,2]
[346583801,1735114256412,-500.0,0.00011229,2]
[346583802,1735114256421,-500.0,0.00011229,2]
[346583803,1735114256431,-213.145238,0.00011229,2]
[346583804,1735114256441,-213.145238,0.00011229,2]
[346583805,1735114256450,-500.0,0.00011229,2]
[346583806,1735114256460,-500.0,0.00011229,2]
[346583807,1735114256470,-1097.02,0.00011229,2]
[346583808,1735114256479,-483.66280595,0.00011229,2]
[346583809,1735114256488,-500.0,0.00011229,2]
[346583810,1735114256498,-531.7511274,0.00011229,2]
[346583811,1735114256508,-218.212726,0.00011229,2]
[346583812,1735114256518,-218.212728,0.00011229,2]
[346583813,1735114256527,-500.0,0.00011229,2]
[346583814,1735114256536,-500.0,0.00011229,2]
[346583815,1735114256546,-504.20609954,0.00011229,2]
[346583816,1735114256555,-650.02,0.00011229,2]
[346583817,1735114256564,-500.0,0.00011229,2]
[346583818,1735114256574,-503.376925,0.00011229,2]
[346583819,1735114256583,-500.0,0.00011229,2]
[346583820,1735114256592,-500.0,0.00011229,2]
[346583821,1735114256601,-500.0,0.00011229,2]
[346583822,1735114256611,-500.0,0.0001123,2]
[346583823,1735114256620,-500.0,0.0001123,2]
[346583824,1735114256629,-606.65715142,0.0001123,2]
[346583825,1735114256638,-151.0,0.0001123,2]
[346583826,1735114256648,-151.0,0.0001123,2]
[346583827,1735114256657,-151.0,0.0001123,2]
[346583828,1735114256668,-151.0,0.0001123,2]
[346583829,1735114256678,-151.0,0.0001123,2]
[346583830,1735114256687,-151.0,0.0001123,2]
[346583831,1735114256697,-500.0,0.0001123,2]
[346583832,1735114256706,-151.0,0.0001123,2]
[346583833,1735114256716,-240.997356,0.0001123,2]
[346583834,1735114256726,-151.0,0.0001123,2]
[346583835,1735114256735,-151.0,0.0001123,2]
[346583836,1735114256745,-1144.76,0.0001123,2]
[346583837,1735114256755,-507.64432595,0.0001123,2]
[346583838,1735114256764,-151.0,0.0001123,2]
[346583839,1735114256773,-237.411845,0.0001123,2]
[346583840,1735114256782,-300.374066,0.0001123,2]
[346583841,1735114256792,-410.761462,0.0001123,2]
[346583842,1735114256801,-410.761462,0.0001123,2]
[346583843,1735114256811,-500.0,0.0001123,2]
[346583844,1735114256820,-500.0,0.0001123,2]
[346583845,1735114256830,-500.0,0.0001123,2]
[346583846,1735114256839,-502.5126296,0.0001123,2]
[346583847,1735114256848,-151.0,0.0001123,2]
[346583848,1735114256858,-391.027377,0.0001123,2]
[346583849,1735114256868,-500.0,0.0001123,2]
[346583850,1735114256877,-391.027377,0.0001123,2]
[346583851,1735114256887,-500.0,0.0001123,2]
[346583852,1735114256896,-151.0,0.0001123,2]
[346583853,1735114256906,-502.10197195,0.0001123,2]
[346583854,1735114256917,-500.0,0.0001123,2]
[346583855,1735114256926,-500.0,0.0001123,2]
[346583856,1735114256936,-502.66114906,0.0001123,2]
[346583857,1735114256945,-501.32887345,0.0001123,2]
[346583858,1735114256954,-503.37256293,0.0001123,2]
[346583859,1735114256963,-505.03903745,0.0001123,2]
[346583860,1735114256973,-667.14,0.0001123,2]
[346583861,1735114256983,-502.43794545,0.0001123,2]
[346583862,1735114256992,-500.0,0.0001123,2]
[346583863,1735114257002,-585.93,0.0001123,2]
[346583864,1735114257012,-500.0,0.00011231,2]
[346583865,1735114257021,-505.07273976,0.00011231,2]
[346583866,1735114257031,-506.08971714,0.00011231,2]
[346583867,1735114257041,-500.0,0.00011231,2]
[346583868,1735114257170,-500.0,0.00011231,2]
[346583869,1735114257180,-500.0,0.00011231,2]
[346583870,1735114257190,-610.92025921,0.00011273,2]
[346583871,1735114257203,-500.0,0.00011273,2]
[346583872,1735114257213,-500.20576822,0.00011273,2]
[346583873,1735114257223,-581.84046144,0.00011273,2]
[346583874,1735114257233,-161.84514332,0.00011273,2]
[346583875,1735114257242,-500.0,0.00011273,2]
[346583876,1735114257252,-366.74966926,0.00011273,2]
[346583877,1735114257261,-574.20999992,0.00011273,2]
[346583878,1735114257271,-217.44441041,0.00011273,2]
[346583879,1735114257280,-504.69722986,0.00011273,2]
[346583880,1735114257290,-500.0,0.00011273,2]
[346583881,1735114257299,-261.34182317,0.00011273,2]
[346583882,1735114257310,-500.0,0.00011273,2]
[346583883,1735114257319,-500.0,0.00011273,2]
[346583884,1735114257329,-500.0,0.00011273,2]
[346583885,1735114257339,-500.0,0.00011273,2]
[346583886,1735114257349,-500.21302187,0.00011273,2]
[346583887,1735114257358,-208.99,0.00011421,2]
[346583888,1735114257368,-10573.55132803,0.00011448,2]
[346583889,1735114257377,-500.0,0.00011499,2]
[346583890,1735114257387,-1407.58,0.00011499,2]
[346583891,1735114257397,-500.0,0.00011499,2]
[346583892,1735114257407,-500.0,0.00011499,2]
[346583893,1735114257417,-500.0,0.00011499,2]
[346583894,1735114257426,-893.49,0.00011499,2]
[346583895,1735114257435,-151.0,0.000115,2]
[346583896,1735114257445,-500.0,0.000115,2]
[346583897,1735114257454,-500.0,0.000115,2]
[346583898,1735114257464,-500.0,0.000115,2]
[346583899,1735114257474,-500.0,0.000115,2]
[346583900,1735114257483,-500.0,0.000115,2]
[346583901,1735114257492,-8652.18,0.000115,2]
[346583902,1735114257503,-3266.33,0.000115,2]
[346583903,1735114257512,-500.0,0.000115,2]
[346583904,1735114257522,-500.0,0.000115,2]
[346583905,1735114257532,-2597.24,0.000115,2]
[346583906,1735114257541,-500.0,0.000115,2]
[346583907,1735114257550,-1498.99,0.000115,2]
[346583908,1735114257559,-500.0,0.000115,2]
[346583909,1735114257569,-1287.27,0.000115,2]
[346583910,1735114257579,-759.15,0.000115,2]
[346583911,1735114257588,-444.47694484,0.000115,2]
[346583912,1735114257598,-822.74,0.000115,2]
[346583913,1735114257607,-552.19,0.000115,2]
[346583914,1735114257617,-500.0,0.000115,2]
[346583915,1735114257626,-500.0,0.00011501,2]
[346583916,1735114257635,-500.0,0.00011501,2]
[346583917,1735114257645,-548.54,0.00011501,2]
[346583918,1735114257654,-500.0,0.00011501,2]
[346583919,1735114257664,-510.65546127,0.00011501,2]
[346583920,1735114257676,-500.0,0.00011501,2]
[346583921,1735114257688,-500.0,0.00011501,2]
[346583922,1735114257698,-500.0,0.00011501,2]
[346583923,1735114257707,-500.0,0.00011501,2]
[346583924,1735114257717,-618.9,0.00011501,2]
[346583925,1735114257727,-298.97628513,0.00011501,2]
[346583926,1735114257736,-378.5351353,0.00011501,2]
[346583927,1735114257746,-1124.02,0.00011501,2]
[346583928,1735114257755,-500.0,0.00011501,2]
[346583929,1735114257765,-794.49,0.00011501,2]
[346583930,1735114257774,-501.73,0.00011501,2]
[346583931,1735114257784,-168.0,0.00011501,2]
[346583932,1735114257793,-500.0,0.00011501,2]
[346583933,1735114257802,-500.0,0.00011501,2]
[346583934,1735114257812,-551.51,0.00011501,2]
[346583935,1735114257822,-500.0,0.00011501,2]
[346583936,1735114257831,-155.193608,0.00011501,2]
[346583937,1735114257841,-500.0,0.00011501,2]
[346583938,1735114257850,-155.193608,0.00011501,2]
[346583939,1735114257860,-500.0,0.00011501,2]
[346583940,1735114257869,-500.0,0.00011501,2]
[346583941,1735114257879,-1113.08,0.00011501,2]
[346583942,1735114257889,-636.97004,0.00011501,2]
[346583943,1735114257898,-636.97004,0.00011501,2]
[346583944,1735114257907,-500.0,0.00011501,2]
[346583945,1735114257919,-2032.68,0.00011501,2]
[346583946,1735114257929,-151.0,0.00011501,2]
[346583947,1735114257940,-853.08,0.00011501,2]
[346583948,1735114257952,-500.0,0.00011501,2]
[346583949,1735114257962,-778.87296,0.00011501,2]
[346583950,1735114257971,-778.87296,0.00011501,2]
[346583951,1735114257981,-500.0,0.00011501,2]
[346583952,1735114257991,-467.19856282,0.00011501,2]
[346583953,1735114258001,-604.2,0.00011501,2]
[346583954,1735114258011,-578.83,0.00011501,2]
[346583955,1735114258023,-151.0,0.00011501,2]
[346583956,1735114258033,-500.0,0.00011501,2]
[346583957,1735114258043,-500.0,0.00011501,2]
[346583958,1735114258053,-500.0,0.00011501,2]
[346583959,1735114258064,-174.58378019,0.00011501,2]
[346583960,1735114258073,-819.96,0.00011501,2]
[346583961,1735114258082,-500.0,0.00011501,4]
[346583962,1735114258092,-500.0,0.00011501,2]
[346583963,1735114258102,-151.0,0.00011501,2]
[346583964,1735114258112,-1205.03,0.00011501,2]
[346583965,1735114258121,-544.0,0.00011501,2]
[346583966,1735114258133,-158.973567,0.00011501,2]
[346583967,1735114258143,-500.0,0.00011501,2]
[346583968,1735114258153,-562.61,0.00011501,2]
[346583969,1735114258163,-500.0,0.00011501,2]
[346583970,1735114258175,-1763.4,0.00011501,2]
[346583971,1735114258185,-8844.65,0.00011501,2]
[346583972,1735114258195,-500.0,0.00011501,2]
[346583973,1735114258205,-1536.22,0.00011501,2]
[346583974,1735114258215,-500.0,0.00011501,2]
[346583975,1735114258226,-151.0,0.00011501,2]
[346583976,1735114258235,-1257.99,0.00011501,2]
[346583977,1735114258245,-526.03,0.00011501,2]
[346583978,1735114258254,-213.145238,0.00011501,2]
[346583979,1735114258266,-500.0,0.00011501,2]
[346583980,1735114258276,-500.0,0.00011501,2]
[346583981,1735114258285,-500.0,0.00011501,2]
[346583982,1735114258295,-213.145238,0.00011501,2]
[346583983,1735114258304,-500.0,0.00011501,2]
[346583984,1735114258314,-507.77664109,0.00011501,2]
[346583985,1735114258324,-500.0,0.00011501,2]
[346583986,1735114258334,-500.0,0.00011501,2]
[346583987,1735114258343,-500.0,0.00011501,2]
[346583988,1735114258353,-555.91,0.00011501,2]
[346583989,1735114258363,-634.78,0.00011501,2]
[346583990,1735114258372,-813.97,0.00011501,2]
[346583991,1735114258382,-500.0,0.00011501,2]
[346583992,1735114258391,-500.0,0.00011501,2]
[346583993,1735114258401,-970.83,0.00011501,2]
[346583994,1735114258410,-1200.648634,0.00011502,2]
[346583995,1735114258421,-1200.648634,0.00011502,2]
[346583996,1735114258430,-277.762112,0.00011502,2]
[346583997,1735114258440,-277.762112,0.00011502,2]
[346583998,1735114258450,-447.035386,0.00011502,2]
[346583999,1735114258459,-447.035386,0.00011502,2]
[346584000,1735114258468,-447.035386,0.00011502,2]
[346584001,1735114258478,-447.035386,0.00011502,2]
[346584002,1735114258487,-151.0,0.00011502,2]
[346584003,1735114258497,-151.0,0.00011502,2]
[346584004,1735114258507,-151.0,0.00011502,2]
[346584005,1735114258516,-410.761462,0.00011502,2]
[346584006,1735114258525,-410.761462,0.00011502,2]
[346584007,1735114258534,-151.0,0.00011502,2]
[346584008,1735114258544,-391.027377,0.00011502,2]
[346584009,1735114258553,-391.027377,0.00011502,2]
[346584010,1735114258563,-151.0,0.00011502,2]
[346584011,1735114258572,-696.01,0.00011502,2]
[346584012,1735114258582,-580.87,0.00011502,2]
[346584013,1735114258591,-155.193608,0.00011502,2]
[346584014,1735114258600,-155.193611,0.00011502,2]
[346584015,1735114258610,-500.0,0.00011502,2]
[346584016,1735114258619,-636.97004,0.00011502,2]
[346584017,1735114258628,-636.97005,0.00011502,2]
[346584018,1735114258638,-151.0,0.00011502,2]
[346584019,1735114258647,-778.87296,0.00011502,2]
[346584020,1735114258656,-778.87295,0.00011502,2]
[346584021,1735114258666,-33146.83,0.00011502,2]
[346584022,1735114258676,-7815.83,0.00011502,2]
[346584023,1735114258685,-151.0,0.00011502,2]
[346584024,1735114258695,-1286.05,0.00011502,2]
[346584025,1735114258704,-151.0,0.00011502,2]
[346584026,1735114258714,-8844.65,0.00011502,2]
[346584027,1735114258724,-8844.65,0.00011502,2]
[346584028,1735114258733,-8844.65,0.00011502,2]
[346584029,1735114258743,-8844.65,0.00011502,2]
[346584030,1735114258752,-8844.848979,0.00011502,2]
[346584031,1735114258762,-7639.36,0.00011502,2]
[346584032,1735114258772,-151.0,0.00011502,2]
[346584033,1735114258781,-213.145238,0.00011502,2]
[346584034,1735114258791,-1203.15,0.00011502,2]
[346584035,1735114258800,-213.145245,0.00011502,2]
[346584036,1735114258809,-500.0,0.00011502,2]
[346584037,1735114258819,-500.0,0.00011502,2]
[346584038,1735114258829,-207.034912,0.00011503,2]
[346584039,1735114258838,-154.236158,0.00011503,2]
[346584040,1735114258848,-500.0,0.00011503,2]
[346584041,1735114258857,-187.88727987,0.00011503,2]
[346584042,1735114258866,-500.0,0.00011503,2]
[346584043,1735114258876,-1200.648634,0.00011503,2]
[346584044,1735114258885,-1200.648634,0.00011503,2]
[346584045,1735114258895,-500.0,0.00011503,2]
[346584046,1735114258905,-202.388358,0.00011503,2]
[346584047,1735114258915,-500.0,0.00011503,2]
[346584048,1735114258925,-589.09,0.00011503,2]
[346584049,1735114258936,-151.0,0.00011503,2]
[346584050,1735114258945,-151.0,0.00011503,2]
[346584051,1735114258955,-151.0,0.00011503,2]
[346584052,1735114258964,-158.834723,0.00011503,2]
[346584053,1735114258973,-431.71421158,0.00011503,2]
[346584054,1735114258983,-500.0,0.00011503,2]
[346584055,1735114258992,-151.0,0.00011503,2]
[346584056,1735114259002,-151.0,0.00011503,2]
[346584057,1735114259011,-151.0,0.00011503,2]
[346584058,1735114259021,-208.228386,0.00011503,2]
[346584059,1735114259030,-500.0,0.00011503,2]
[346584060,1735114259039,-500.0,0.00011503,2]
[346584061,1735114259049,-151.0,0.00011503,2]
[346584062,1735114259058,-151.0,0.00011503,2]
[346584063,1735114259067,-165.029053,0.00011503,2]
[346584064,1735114259077,-500.0,0.00011503,2]
[346584065,1735114259086,-504.0408749,0.00011503,2]
[346584066,1735114259095,-500.0,0.00011503,2]
[346584067,1735114259105,-500.0,0.00011503,2]
[346584068,1735114259114,-151.0,0.00011503,2]
[346584069,1735114259123,-151.0,0.00011503,2]
[346584070,1735114259132,-500.0,0.00011503,2]
[346584071,1735114259141,-151.0,0.00011503,2]
[346584072,1735114259151,-151.0,0.00011503,2]
[346584073,1735114259160,-500.0,0.00011503,2]
[346584074,1735114259171,-500.0,0.00011503,2]
[346584075,1735114259181,-277.762112,0.00011503,2]
[346584076,1735114259191,-277.762112,0.00011503,2]
[346584077,1735114259200,-277.762112,0.00011503,2]
[346584078,1735114259210,-277.762112,0.00011503,2]
[346584079,1735114259219,-500.0,0.00011503,2]
[346584080,1735114259229,-500.0,0.00011503,2]
[346584081,1735114259239,-500.0,0.00011503,2]
[346584082,1735114259249,-221.00505656,0.00011503,2]
[346584083,1735114259259,-500.0,0.00011503,2]
[346584084,1735114259269,-607.37,0.00011503,2]
[346584085,1735114259278,-447.035386,0.00011503,2]
[346584086,1735114259287,-500.0,0.00011503,2]
[346584087,1735114259297,-447.035386,0.00011503,2]
[346584088,1735114259307,-151.0,0.00011503,2]
[346584089,1735114259316,-151.0,0.00011503,2]
[346584090,1735114259326,-510.3,0.00011503,2]
[346584091,1735114259335,-410.761462,0.00011503,2]
[346584092,1735114259345,-500.0,0.00011503,2]
[346584093,1735114259355,-410.761462,0.00011503,2]
[346584094,1735114259364,-500.0,0.00011503,2]
[346584095,1735114259374,-1007.94,0.00011503,2]
[346584096,1735114259384,-500.0,0.00011503,2]
[346584097,1735114259394,-500.0,0.00011503,2]
[346584098,1735114259403,-500.0,0.00011503,2]
[346584099,1735114259413,-500.0,0.00011503,2]
[346584100,1735114259424,-222.57592,0.00011503,2]
[346584101,1735114259434,-222.57592,0.00011503,2]
[346584102,1735114259443,-782.01,0.00011503,2]
[346584103,1735114259453,-151.0,0.00011503,2]
[346584104,1735114259463,-151.0,0.00011503,2]
[346584105,1735114259472,-391.027377,0.00011503,2]
[346584106,1735114259482,-391.027377,0.00011503,2]
[346584107,1735114259491,-391.027377,0.00011503,2]
[346584108,1735114259501,-391.027377,0.00011503,2]
[346584109,1735114259511,-1009.9,0.00011503,2]
[346584110,1735114259520,-754.17,0.00011503,2]
[346584111,1735114259530,-601.76,0.00011503,2]
[346584112,1735114259540,-184.621015,0.00011503,2]
[346584113,1735114259584,-500.0,0.00011503,2]
[346584114,1735114259593,-500.0,0.00011503,2]
[346584115,1735114259603,-500.0,0.00011503,2]
[346584116,1735114259612,-517.01,0.00011503,2]
[346584117,1735114259621,-323.75931422,0.00011503,2]
[346584118,1735114259631,-500.0,0.00011503,2]
[346584119,1735114259640,-500.0,0.00011503,2]
[346584120,1735114259649,-500.0,0.00011503,2]
[346584121,1735114259659,-552.58,0.00011503,2]
[346584122,1735114259668,-500.0,0.00011503,2]